fUSD/lending_fUSD_20250806
["ID","MTS","AMOUNT","RATE_DAILY","PERIOD"]
[377646306,1754476242295,-151.0,0.00034983,7]
[377646307,1754476242305,-152.500477,0.00034983,7]
[377646308,1754476242314,-151.0,0.00034983,7]
[377646309,1754476242326,-151.0,0.00034983,7]
[377646310,1754476242337,-153.897648,0.00034983,7]
[377646312,1754476242346,-242.916088,0.00034983,7]
[377646314,1754476242356,-151.0,0.00034983,7]
[377646316,1754476242367,-295.631196,0.00034983,7]
[377646318,1754476242376,-151.0,0.00034983,7]
[377646320,1754476242386,-151.0,0.00034983,7]
[377646322,1754476242396,-130802.95952033,0.00034983,2]
[377646323,1754476242406,-130802.95952033,0.00034983,2]
[377646324,1754476242415,-130802.95952033,0.00034983,2]
[377646325,1754476242425,-130802.95952033,0.00034983,2]
[377646326,1754476242435,-1000.0,0.00034992,2]
[377646327,1754476242445,-1350.2,0.00034999,30]
[377646328,1754476242454,-155.78445296,0.00035,30]
[377646329,1754476242464,-211.52696026,0.00035,10]
[377646330,1754476242473,-211.52696026,0.00035,30]
[377646331,1754476242482,-211.52696026,0.00035,3]
[377646332,1754476242492,-161.38,0.00035,2]
[377646333,1754476242502,-993.51,0.00035,30]
[377646334,1754476242512,-1000.0,0.00035,2]
[377646335,1754476242756,-1000.0,0.00035,2]
[377646336,1754476242767,-21347.92,0.00035,14]
[377646337,1754476242776,-151.0,0.00035,7]
[377646338,1754476242786,-151.0,0.00035,7]
[377646339,1754476242795,-151.0,0.00035,7]
[377646340,1754476242806,-151.0,0.00035,7]
[377646341,1754476242815,-151.0,0.00035,7]
[377646342,1754476242824,-151.0,0.00035,7]
[377646343,1754476242835,-500.13075,0.00035,7]
[377646344,1754476242845,-500.13075,0.00035,7]
[377646345,1754476242854,-158.293965,0.00035,7]
[377646346,1754476242864,-158.293965,0.00035,7]
[377646347,1754476242873,-157.626515,0.00035,7]
[377646348,1754476242883,-457.43778519,0.00035,7]
[377646349,1754476242893,-1000.0,0.00035,2]
[377646350,1754476242903,-502.83973113,0.00035068,2]
[377646351,1754476242912,-311.4813511,0.00035068,2]
[377646352,1754476242922,-500.0,0.00035068,2]
[377646353,1754476242931,-150.0,0.00035068,2]
[377646354,1754476242940,-500.0,0.00035068,2]
[377646355,1754476242950,-200.0,0.00035068,2]
[377646356,1754476242959,-150.0,0.00035068,2]
[377646357,1754476242968,-500.0,0.00035068,2]
[377646358,1754476242978,-500.0,0.00035068,2]
[377646359,1754476242989,-150.0,0.00035068,2]
[377646360,1754476242999,-150.0,0.00035068,2]
[377646361,1754476243008,-500.0,0.00035068,2]
[377646362,1754476243017,-923.0,0.00035068,2]
[377646363,1754476243027,-500.0,0.00035068,2]
[377646364,1754476243036,-500.0,0.00035068,2]
[377646365,1754476243046,-500.0,0.00035068,120]
[377646366,1754476243055,-500.0,0.00035068,2]
[377646367,1754476243064,-150.0,0.00035068,2]
[377646368,1754476243074,-456.42455606,0.00035068,2]
[377646369,1754476243083,-150.0,0.00035068,2]
[377646370,1754476243093,-500.0,0.00035068,2]
[377646371,1754476243102,-150.0,0.00035068,2]
[377646372,1754476243114,-500.0,0.00035068,2]
[377646373,1754476243124,-501.4508455,0.00035068,2]
[377646374,1754476243133,-297.0,0.00035068,2]
[377646375,1754476243143,-734.0,0.00035068,2]
[377646376,1754476243154,-150.0,0.00035139,2]
[377646377,1754476243164,-6457.1864,0.00035194,2]
[377646378,1754476243174,-1000.0,0.00035225,2]
[377646379,1754476243185,-150.0,0.00035334,4]
[377646380,1754476243196,-150.0,0.00035334,4]
[377646381,1754476243207,-198.69057949,0.00035334,4]
[377646382,1754476243217,-150.0,0.00035334,4]
[377646383,1754476243227,-150.0,0.00035334,4]
[377646384,1754476243238,-316.16275662,0.00035342,2]
[377646385,1754476243249,-250.48726877,0.00035342,2]
[377646386,1754476243259,-500.0,0.00035342,2]
[377646387,1754476243271,-196.24841553,0.00035342,2]
[377646388,1754476243281,-500.0,0.00035342,2]
[377646389,1754476243291,-574.02983079,0.00035342,2]
[377646390,1754476243301,-150.0,0.00035342,2]
[377646391,1754476243311,-224.37526121,0.00035342,2]
[377646392,1754476243321,-500.0,0.00035342,2]
[377646393,1754476243334,-923.0,0.00035342,2]
[377646394,1754476243343,-500.0,0.00035342,2]
[377646395,1754476243353,-500.0,0.00035342,2]
[377646396,1754476243362,-500.0,0.00035342,120]
[377646397,1754476243374,-500.0,0.00035342,2]
[377646398,1754476243384,-150.0,0.00035342,2]
[377646399,1754476243393,-205.16083841,0.00035342,2]
[377646400,1754476243404,-500.0,0.00035342,2]
[377646401,1754476243413,-150.0,0.00035342,2]
[377646402,1754476243423,-500.0,0.00035342,2]
[377646403,1754476243432,-734.0,0.00035342,2]
[377646404,1754476243442,-150.0,0.00035354,2]
[377646405,1754476243452,-1000.0,0.000354,120]
[377646406,1754476243462,-781.42284872,0.000354,120]
[377646407,1754476243471,-150.0,0.00035447,2]
[377646408,1754476243481,-152.0,0.00035496,6]
[377646409,1754476243491,-150.0,0.00035498,2]
[377646410,1754476243500,-3268.6187052,0.00035499,2]
[377646411,1754476243510,-158.22,0.00035554,120]
[377646412,1754476243519,-152.90617284,0.00035556,2]
[377646413,1754476243530,-150.0,0.00035561,2]
[377646414,1754476243540,-20.37868331,0.00035569,2]
[377646415,1754476243549,-357.0,0.000356,2]
[377646416,1754476243559,-1100.0,0.00035615,7]
[377646417,1754476243569,-500.0,0.00035616,2]
[377646418,1754476243581,-500.0,0.00035616,2]
[377646419,1754476243590,-170.4473648,0.00035616,2]
[377646420,1754476243600,-500.0,0.00035616,2]
[377646421,1754476243610,-923.0,0.00035616,2]
[377646422,1754476243619,-362.10842267,0.00035616,2]
[377646423,1754476243628,-268.14231184,0.00035616,2]
[377646424,1754476243637,-500.0,0.00035616,120]
[377646425,1754476243647,-500.0,0.00035616,2]
[377646426,1754476243656,-500.0,0.00035616,2]
[377646427,1754476243666,-150.0,0.00035616,2]
[377646428,1754476243675,-500.0,0.00035616,2]
[377646429,1754476243685,-734.0,0.00035616,2]
[377646430,1754476243694,-1000.0,0.00035616,60]
[377646431,1754476243703,-1000.0,0.00035616,60]
[377646432,1754476243713,-1000.0,0.00035616,60]
[377646433,1754476243725,-1000.0,0.00035616,60]
[377646434,1754476243734,-1000.0,0.00035616,60]
[377646435,1754476243743,-1000.0,0.00035616,60]
[377646436,1754476243752,-646.20382581,0.00035616,60]
[377646437,1754476243761,-500.0,0.00035616,30]
[377646438,1754476243771,-150.0,0.00035659,2]
[377646439,1754476243780,-3665.66,0.000357,14]
[377646440,1754476243789,-150.0,0.00035727,7]
[377646441,1754476243798,-150.0,0.00035738,2]
[377646442,1754476243808,-500.0,0.00035799,15]
[377646443,1754476243818,-627.19477944,0.00035799,30]
[377646444,1754476243827,-150.0,0.00035799,2]
[377646445,1754476243836,-21347.92,0.000358,14]
[377646446,1754476243845,-200.622566,0.000358,12]
[377646447,1754476243854,-151.0,0.00035819,6]
[377646448,1754476243863,-150.0,0.00035831,2]
[377646449,1754476243872,-500.0,0.0003589,2]
[377646450,1754476243882,-500.0,0.0003589,2]
[377646451,1754476243891,-500.0,0.0003589,2]
[377646452,1754476243901,-923.0,0.0003589,2]
[377646453,1754476243910,-500.0,0.0003589,120]
[377646454,1754476243919,-368.47422278,0.0003589,2]
[377646455,1754476243928,-500.0,0.0003589,2]
[377646456,1754476243937,-213.7586928,0.0003589,2]
[377646457,1754476243946,-500.0,0.0003589,2]
[377646458,1754476243955,-734.0,0.0003589,2]
[377646459,1754476243965,-150.0,0.0003589,2]
[377646460,1754476243974,-327.76131967,0.0003589,2]
[377646461,1754476243985,-150.0,0.0003589,2]
[377646462,1754476243994,-1106.48315681,0.0003589,2]
[377646463,1754476244004,-150.0,0.0003589,2]
[377646464,1754476244013,-1559.93427671,0.0003589,2]
[377646465,1754476244022,-500.0,0.0003589,31]
[377646466,1754476244032,-150.0,0.00035894,2]
[377646467,1754476244041,-150.0,0.00035895,2]
[377646468,1754476244050,-1350.23854186,0.000359,120]
[377646469,1754476244060,-993.51,0.000359,30]
[377646470,1754476244070,-383.22,0.0003597,2]
[377646471,1754476244079,-65114.73063954,0.00036,2]
[377646472,1754476244090,-2466.60582329,0.00036,2]
[377646473,1754476244099,-211.52696026,0.00036,120]
[377646474,1754476244109,-607.85,0.0003602,2]
[377646475,1754476244119,-211.06,0.00036064,2]
[377646476,1754476244128,-2395.82533645,0.00036095,2]
[377646477,1754476244138,-150.0,0.00036119,7]
[377646478,1754476244147,-1040.26,0.00036132,30]
[377646479,1754476244157,-500.0,0.00036164,2]
[377646480,1754476244166,-500.0,0.00036164,2]
[377646481,1754476244176,-500.0,0.00036164,2]
[377646482,1754476244186,-923.0,0.00036164,2]
[377646483,1754476244195,-500.0,0.00036164,120]
[377646484,1754476244205,-500.0,0.00036164,2]
[377646485,1754476244215,-500.0,0.00036164,2]
[377646486,1754476244226,-734.0,0.00036164,2]
[377646487,1754476244235,-2500.0,0.00036164,14]
[377646488,1754476244246,-152.40168,0.00036164,7]
[377646489,1754476244255,-400.0,0.00036164,14]
[377646490,1754476244266,-500.0,0.00036164,32]
[377646491,1754476244276,-706.94691386,0.0003617,2]
[377646492,1754476244286,-1000.0,0.00036172,2]
[377646493,1754476244295,-1045.76821615,0.00036186,5]
[377646494,1754476244305,-455.51393805,0.00036191,5]
[377646495,1754476244315,-370.6,0.00036194,6]
[377646496,1754476244329,-201.0,0.000362,2]
[377646497,1754476244342,-211.06,0.00036227,2]
[377646498,1754476244353,-150.0,0.00036257,2]
[377646499,1754476244363,-301.25,0.000363,2]
[377646500,1754476244373,-152.90617284,0.00036317,2]
[377646501,1754476244383,-150.0,0.00036322,2]
[377646502,1754476244393,-700.0,0.0003637,2]
[377646503,1754476244403,-585.94970232,0.00036391,39]
[377646504,1754476244413,-300.0,0.000364,120]
[377646505,1754476244422,-150.0,0.00036403,2]
[377646506,1754476244434,-150.0,0.0003642,2]
[377646507,1754476244444,-150.0,0.0003642,2]
[377646508,1754476244453,-1100.0,0.00036437,7]
[377646509,1754476244464,-500.0,0.00036438,2]
[377646510,1754476244474,-500.0,0.00036438,2]
[377646511,1754476244483,-500.0,0.00036438,2]
[377646512,1754476244494,-923.0,0.00036438,2]
[377646513,1754476244503,-500.0,0.00036438,120]
[377646514,1754476244512,-500.0,0.00036438,2]
[377646515,1754476244522,-500.0,0.00036438,2]
[377646516,1754476244531,-734.0,0.00036438,2]
[377646517,1754476244541,-2500.0,0.00036438,14]
[377646518,1754476244551,-179.82959431,0.00036438,14]
[377646519,1754476244562,-500.0,0.00036438,33]
[377646520,1754476244572,-150.0,0.00036447,2]
[377646521,1754476244583,-241.06552011,0.000365,120]
[377646522,1754476244593,-1551.64905401,0.000365,5]
[377646523,1754476244602,-150.0,0.00036512,7]
[377646524,1754476244613,-370.6,0.00036556,6]
[377646525,1754476244622,-520.83,0.00036599,30]
[377646526,1754476244632,-1721.86,0.00036599,30]
[377646527,1754476244642,-2598.61,0.00036599,30]
[377646528,1754476244653,-500.0,0.00036599,30]
[377646529,1754476244663,-21347.92,0.000366,14]
[377646530,1754476244673,-169.194829,0.000366,7]
[377646531,1754476244684,-152.011952,0.000366,7]
[377646532,1754476244694,-152.058908,0.000366,7]
[377646533,1754476244704,-151.0,0.000366,7]
[377646534,1754476244714,-3665.66,0.000366,14]
[377646535,1754476244723,-150.0,0.00036601,2]
[377646536,1754476244733,-150.0,0.00036612,2]
[377646537,1754476244744,-215.26491034,0.00036641,2]
[377646538,1754476244753,-150.0,0.00036691,2]
[377646539,1754476244765,-1350.2,0.00036711,30]
[377646540,1754476244775,-500.0,0.00036712,2]
[377646541,1754476244786,-500.0,0.00036712,2]
[377646542,1754476244797,-500.0,0.00036712,2]
[377646543,1754476244807,-923.0,0.00036712,2]
[377646544,1754476244816,-500.0,0.00036712,120]
[377646545,1754476244826,-500.0,0.00036712,2]
[377646546,1754476244837,-500.0,0.00036712,2]
[377646547,1754476244847,-734.0,0.00036712,2]
[377646548,1754476244856,-2500.0,0.00036712,14]
[377646549,1754476244866,-500.0,0.00036712,34]
[377646550,1754476244877,-150.0,0.00036733,2]
[377646551,1754476244887,-150.0,0.00036781,2]
[377646552,1754476244896,-349.0,0.0003679,2]
[377646553,1754476244906,-150.0,0.00036794,2]
[377646554,1754476244915,-155.07297553,0.00036795,30]
[377646555,1754476244926,-151.56,0.00036798,60]
[377646556,1754476244937,-155.82,0.00036798,60]
[377646557,1754476244947,-993.51,0.000368,30]
[377646558,1754476244956,-151.57,0.00036807,60]
[377646559,1754476244966,-172.93,0.00036808,60]
[377646560,1754476244976,-172.91,0.00036808,60]
[377646561,1754476244987,-500.0,0.00036813,120]
[377646562,1754476244997,-151.0,0.00036813,7]
[377646563,1754476245006,-150.0,0.00036817,2]
[377646564,1754476245016,-150.0,0.0003682,2]
[377646565,1754476245028,-150.0,0.0003683,2]
[377646566,1754476245038,-150.0,0.00036882,2]
[377646567,1754476245047,-151.44,0.00036894,2]
[377646568,1754476245057,-151.56,0.00036898,60]
[377646569,1754476245067,-155.82,0.00036898,60]
[377646570,1754476245076,-150.0,0.00036905,7]
[377646571,1754476245085,-151.57,0.00036907,60]
[377646572,1754476245095,-370.6,0.00036918,6]
[377646573,1754476245105,-150.0,0.00036936,2]
[377646574,1754476245196,-700.0,0.0003697,2]
[377646575,1754476245207,-1300.0,0.00036985,7]
[377646576,1754476245216,-500.0,0.00036986,2]
[377646577,1754476245225,-424.0319654,0.00036986,2]
[377646578,1754476245234,-500.0,0.00036986,2]
[377646579,1754476245243,-923.0,0.00036986,2]
[377646580,1754476245252,-500.0,0.00036986,120]
[377646581,1754476245262,-500.0,0.00036986,2]
[377646582,1754476245271,-500.0,0.00036986,2]
[377646583,1754476245280,-734.0,0.00036986,2]
[377646585,1754476245289,-2500.0,0.00036986,14]
[377646586,1754476245299,-500.0,0.00036986,35]
[377646587,1754476245309,-185.38397267,0.00036986,2]
[377646588,1754476245318,-150.0,0.0003699,2]
[377646589,1754476245332,-151.56,0.00036998,60]
[377646590,1754476245342,-155.82,0.00036998,60]
[377646591,1754476245352,-1800.0,0.00037,38]
[377646592,1754476245361,-150.0,0.00037,10]
[377646593,1754476245372,-150.0,0.00037,10]
[377646594,1754476245381,-150.0,0.00037,10]
[377646595,1754476245392,-42596.95298989,0.00037,2]
[377646596,1754476245403,-3485.1345491,0.00037,3]
[377646597,1754476245412,-151.57,0.00037007,60]
[377646598,1754476245421,-608.29887068,0.00037012,2]
[377646599,1754476245431,-150.0,0.00037031,2]
[377646600,1754476245440,-150.0,0.00037045,2]
[377646601,1754476245449,-977.51983087,0.00037057,2]
[377646602,1754476245458,-152.90617284,0.00037078,2]
[377646603,1754476245468,-151.56,0.00037098,60]
[377646604,1754476245479,-155.82,0.00037098,60]
[377646605,1754476245488,-150.0,0.00037102,2]
[377646606,1754476245498,-187.39138617,0.00037102,2]
[377646607,1754476245507,-151.57,0.00037107,60]
[377646608,1754476245517,-150.0,0.00037146,2]
[377646609,1754476245526,-150.0,0.0003716,2]
[377646610,1754476245539,-150.0,0.00037165,2]
[377646611,1754476245551,-201.0,0.0003717,2]
[377646612,1754476245560,-150.0,0.00037186,2]
[377646613,1754476245569,-151.56,0.00037198,60]
[377646614,1754476245578,-155.87,0.00037198,60]
[377646615,1754476245588,-958.0,0.00037202,2]
[377646616,1754476245597,-564.0,0.00037202,2]
[377646617,1754476245607,-2024.0,0.00037202,2]
[377646618,1754476245616,-1293.0,0.00037202,2]
[377646619,1754476245626,-597.0,0.00037202,2]
[377646620,1754476245635,-1652.0,0.00037202,2]
[377646621,1754476245645,-892.0,0.00037202,2]
[377646622,1754476245655,-1170.0,0.00037202,2]
[377646623,1754476245664,-6073.0,0.00037202,2]
[377646624,1754476245673,-956.0,0.00037202,2]
[377646625,1754476245683,-155.07297553,0.00037205,30]
[377646626,1754476245691,-155.07297553,0.00037205,30]
[377646627,1754476245700,-151.57,0.00037207,60]
[377646628,1754476245710,-150.0,0.00037214,2]
[377646629,1754476245719,-190.44669699,0.00037259,7]
[377646630,1754476245727,-600.0,0.00037259,7]
[377646631,1754476245737,-1100.0,0.00037259,7]
[377646632,1754476245746,-500.0,0.0003726,2]
[377646633,1754476245755,-500.0,0.0003726,2]
[377646634,1754476245765,-923.0,0.0003726,2]
[377646635,1754476245774,-500.0,0.0003726,120]
[377646636,1754476245785,-500.0,0.0003726,2]
[377646637,1754476245794,-500.0,0.0003726,2]
[377646638,1754476245803,-734.0,0.0003726,2]
[377646639,1754476245813,-2500.0,0.0003726,14]
[377646640,1754476245822,-500.0,0.0003726,36]
[377646641,1754476245831,-150.0,0.00037278,2]
[377646642,1754476245840,-370.6,0.0003728,6]
[377646643,1754476245849,-150.0,0.00037283,2]
[377646644,1754476245859,-150.0,0.00037297,7]
[377646645,1754476245868,-866.38125618,0.00037298,2]
[377646646,1754476245877,-151.57,0.00037307,60]
[377646647,1754476245886,-150.0,0.00037321,2]
[377646648,1754476245895,-152.0,0.00037322,7]
[377646649,1754476245904,-224.18644077,0.0003739,14]
[377646650,1754476245913,-500.0,0.00037399,15]
[377646651,1754476245922,-21347.92,0.000374,14]
[377646652,1754476245931,-151.0,0.000374,7]
[377646653,1754476245940,-151.61027569,0.00037407,60]
[377646654,1754476245949,-150.0,0.00037444,2]
[377646655,1754476245958,-150.0,0.0003745,2]
[377646656,1754476245967,-150.0,0.00037453,2]
[377646657,1754476245976,-150.0,0.00037453,2]
[377646658,1754476245986,-150.0,0.00037453,2]
[377646659,1754476245995,-150.0,0.00037453,2]
[377646660,1754476246004,-150.0,0.00037453,2]
[377646661,1754476246013,-150.0,0.00037453,2]
[377646662,1754476246022,-700.0,0.0003747,2]
[377646663,1754476246031,-150.0,0.0003747,2]
[377646664,1754476246040,-151.0,0.00037494,7]
[377646665,1754476246050,-2000.0,0.000375,2]
[377646666,1754476246060,-3665.66,0.000375,14]
[377646668,1754476246069,-150.0,0.00037506,2]
[377646669,1754476246078,-187.39138616,0.00037514,2]
[377646670,1754476246087,-467.24,0.00037524,2]
[377646671,1754476246096,-1040.26,0.00037531,30]
[377646672,1754476246105,-500.0,0.00037531,30]
[377646673,1754476246115,-94571.80449462,0.00037532,7]
[377646674,1754476246124,-151.382382,0.00037532,7]
[377646675,1754476246133,-151.0,0.00037532,7]
[377646676,1754476246143,-150.0,0.00037532,2]
[377646677,1754476246152,-151.0,0.00037532,7]
[377646678,1754476246161,-500.13075,0.00037532,7]
[377646679,1754476246170,-500.13075,0.00037532,7]
[377646680,1754476246179,-158.293965,0.00037532,7]
[377646681,1754476246188,-158.293965,0.00037532,7]
[377646682,1754476246198,-1350.2,0.00037533,30]
[377646683,1754476246207,-500.0,0.00037534,2]
[377646684,1754476246216,-251.28097702,0.00037534,2]
[377646685,1754476246225,-923.0,0.00037534,2]
[377646686,1754476246234,-500.0,0.00037534,120]
[377646687,1754476246243,-500.0,0.00037534,2]
[377646688,1754476246252,-500.0,0.00037534,2]
[377646689,1754476246261,-734.0,0.00037534,2]
[377646690,1754476246270,-2500.0,0.00037534,14]
[377646691,1754476246279,-500.0,0.00037534,37]
[377646692,1754476246289,-150.0,0.00037545,120]
[377646693,1754476246298,-607.85,0.00037586,2]
[377646694,1754476246307,-150.0,0.0003761,2]
[377646695,1754476246317,-155.07297553,0.00037616,30]
[377646696,1754476246330,-155.07297553,0.00037616,30]
[377646697,1754476246339,-150.0,0.00037617,2]
[377646698,1754476246349,-150.0,0.0003764,2]
[377646699,1754476246358,-370.6,0.00037643,7]
[377646700,1754476246369,-150.0,0.0003769,7]
[377646701,1754476246379,-993.51,0.000377,30]
[377646702,1754476246388,-383.22,0.000377,2]
[377646703,1754476246398,-150.0,0.00037747,2]
[377646704,1754476246409,-150.0,0.00037783,2]
[377646705,1754476246418,-1300.0,0.00037807,7]
[377646706,1754476246427,-150.0,0.00037807,2]
[377646707,1754476246437,-500.0,0.00037808,2]
[377646708,1754476246446,-923.0,0.00037808,2]
[377646709,1754476246455,-500.0,0.00037808,120]
[377646710,1754476246465,-500.0,0.00037808,2]
[377646711,1754476246474,-500.0,0.00037808,2]
[377646712,1754476246483,-734.0,0.00037808,2]
[377646713,1754476246493,-2524.0345603,0.00037808,14]
[377646714,1754476246502,-500.0,0.00037808,38]
[377646715,1754476246511,-150.0,0.00037815,2]
[377646716,1754476246520,-3011.61032912,0.00037816,35]
[377646717,1754476246530,-2888.15950589,0.00037819,2]
[377646718,1754476246539,-152.90617284,0.00037839,2]
[377646719,1754476246549,-150.0,0.00037845,2]
[377646720,1754476246559,-197.74393278,0.0003788,2]
[377646721,1754476246568,-150.0,0.00037886,2]
[377646722,1754476246577,-187.39138616,0.00037927,2]
[377646723,1754476246586,-150.0,0.00037944,2]
[377646724,1754476246595,-150.0,0.0003797,2]
[377646725,1754476246605,-341.0,0.0003797,2]
[377646726,1754476246614,-150.0,0.0003798,2]
[377646727,1754476246624,-163.16540746,0.00038,120]
[377646728,1754476246633,-600.0,0.00038,39]
[377646729,1754476246642,-930.89225656,0.00038,120]
[377646730,1754476246651,-1000.0,0.00038,120]
[377646731,1754476246660,-200.0,0.00038,120]
[377646732,1754476246670,-228.0,0.00038,2]
[377646733,1754476246679,-229.0,0.00038,2]
[377646734,1754476246688,-218.0,0.00038,2]
[377646735,1754476246697,-219.87674216,0.00038,2]
[377646736,1754476246707,-500.0,0.00038,120]
[377646737,1754476246716,-370.6,0.00038005,7]
[377646738,1754476246725,-150.0,0.00038021,2]
[377646739,1754476246735,-141.96054522,0.00038022,7]
[377646740,1754476251939,-888.0,0.00028444,3]
[377646741,1754476251948,-1776.0,0.00030684,3]
[377646742,1754476251959,-167.34753061,0.00030822,15]
[377646743,1754476251970,-888.0,0.00033376,3]
[377646744,1754476251980,-4139.0,0.00034202,2]
[377646745,1754476251991,-888.0,0.00034702,3]
[377646746,1754476252002,-888.0,0.00035294,3]
[377646747,1754476252013,-1776.0,0.00035616,3]
[377646748,1754476252022,-1776.0,0.00036942,3]
[377646749,1754476252032,-4139.0,0.00037202,2]
[377646750,1754476252041,-1776.0,0.00037534,3]
[377646751,1754476252050,-858.03945478,0.00038022,7]
[377646752,1754476252060,-155.07297553,0.00038027,30]
[377646753,1754476252071,-155.07297553,0.00038027,30]
[377646754,1754476252081,-150.0,0.00038069,2]
[377646755,1754476252090,-600.0,0.00038081,7]
[377646756,1754476252099,-411.46234156,0.00038082,2]
[377646757,1754476252108,-923.0,0.00038082,2]
[377646758,1754476252117,-500.0,0.00038082,120]
[377646759,1754476252127,-500.0,0.00038082,2]
[377646760,1754476252138,-500.0,0.00038082,2]
[377646761,1754476252147,-734.0,0.00038082,2]
[377646762,1754476252157,-500.0,0.00038082,39]
[377646763,1754476252166,-150.0,0.00038082,7]
[377646764,1754476252176,-150.0,0.00038086,2]
[377646765,1754476252185,-201.0,0.0003814,2]
[377646766,1754476252194,-150.0,0.00038187,2]
[377646767,1754476252204,-150.0,0.00038197,2]
[377646768,1754476252213,-150.0,0.00038199,2]
[377646769,1754476252223,-1619.094374,0.000382,29]
[377646770,1754476252232,-300.0,0.00038203,2]
[377646771,1754476252242,-709.79517529,0.00038216,2]
[377646772,1754476252251,-1000.0,0.00038224,7]
[377646773,1754476252260,-153.0360799,0.00038237,7]
[377646774,1754476252270,-520.83,0.00038256,30]
[377646775,1754476252279,-1721.86,0.00038256,30]
[377646776,1754476252288,-2598.61,0.00038256,30]
[377646777,1754476252298,-150.0,0.0003826,2]
[377646778,1754476252307,-150.0,0.00038262,2]
[377646779,1754476252318,-2362.52810612,0.00038264,10]
[377646780,1754476252332,-208.0,0.0003827,30]
[377646781,1754476252342,-500.0,0.00038271,7]
[377646782,1754476252351,-500.0,0.00038271,7]
[377646783,1754476252360,-444.14,0.00038271,7]
[377646784,1754476252371,-500.0,0.00038271,7]
[377646785,1754476252381,-500.0,0.00038271,7]
[377646786,1754476252390,-500.0,0.00038271,7]
[377646787,1754476252399,-500.0,0.00038271,7]
[377646788,1754476252409,-500.0,0.00038271,7]
[377646789,1754476252420,-500.0,0.00038271,7]
[377646790,1754476252429,-500.0,0.00038271,7]
[377646791,1754476252439,-500.0,0.00038271,7]
[377646792,1754476252448,-500.0,0.00038271,7]
[377646793,1754476252458,-500.0,0.00038271,7]
[377646794,1754476252467,-500.0,0.00038271,7]
[377646795,1754476252477,-188.21,0.00038271,7]
[377646796,1754476252486,-500.0,0.00038271,7]
[377646797,1754476252495,-150.0,0.00038321,2]
[377646798,1754476252505,-150.0,0.00038327,2]
[377646799,1754476252515,-1000.0,0.00038328,7]
[377646800,1754476252525,-150.0,0.00038337,2]
[377646801,1754476252534,-187.39138616,0.00038339,2]
[377646802,1754476252543,-152.26,0.00038341,2]
[377646803,1754476252553,-150.0,0.00038342,2]
[377646804,1754476252562,-904.64090968,0.00038345,2]
[377646805,1754476252574,-923.0,0.00038356,2]
[377646806,1754476252583,-500.0,0.00038356,120]
[377646807,1754476252593,-500.0,0.00038356,2]
[377646808,1754476252604,-500.0,0.00038356,2]
[377646809,1754476252613,-734.0,0.00038356,2]
[377646810,1754476252623,-500.0,0.00038356,40]
[377646811,1754476252632,-833930.62858222,0.0003836,120]
[377646812,1754476252641,-150.0,0.00038366,30]
[377646813,1754476252651,-240.40306107,0.00038366,30]